bitfinex/quotes_BTCUSD_20250131
["timestamp","ask_amount","ask_price","bid_price","bid_amount"]
[1738310469755,0.46745189,104270.0,104260.0,1.84279088]
[1738310469990,0.46745189,104270.0,104260.0,1.71893771]
[1738310470162,0.46745189,104270.0,104260.0,1.84279088]
[1738310470370,0.46745189,104270.0,104260.0,1.85279088]
[1738310470605,0.45845189,104270.0,104260.0,1.92809088]
[1738310470829,0.45845189,104270.0,104260.0,1.84279088]
[1738310471320,0.45845189,104270.0,104260.0,1.84179088]
[1738310471703,0.45845189,104270.0,104260.0,1.84279088]
[1738310472543,0.45845189,104270.0,104260.0,1.85221957]
[1738310478285,0.45845189,104270.0,104260.0,2.00806273]
[1738310478489,0.45845189,104270.0,104260.0,2.08586273]
[1738310479904,0.45845189,104270.0,104260.0,2.11571668]
[1738310480112,0.45845189,104270.0,104260.0,2.08586273]
[1738310480326,0.45845189,104270.0,104260.0,2.11571667]
[1738310481206,0.45845189,104270.0,104260.0,2.13571667]
[1738310481422,0.45845189,104270.0,104260.0,2.25956984]
[1738310482012,0.45845189,104270.0,104260.0,2.58856984]
[1738310482013,0.42198627,104270.0,104260.0,2.58856984]
[1738310482222,0.04925579,104340.0,104310.0,0.17]
[1738310482438,0.00073821,104330.0,104320.0,0.41764117]
[1738310482643,0.00073821,104330.0,104320.0,0.43764117]
[1738310482644,0.48000821,104330.0,104320.0,0.43764117]
[1738310483088,0.50300821,104330.0,104320.0,0.293788]
[1738310483505,0.023,104320.0,104310.0,0.73112]
[1738310483711,0.50227,104320.0,104310.0,0.73112]
[1738310483918,0.50227,104320.0,104310.0,0.88112]
[1738310484137,0.50227,104320.0,104310.0,1.00497317]
[1738310484338,0.50227,104320.0,104310.0,0.88112]
[1738310484555,0.86870116,104320.0,104310.0,0.34172]
[1738310484772,0.60467,104320.0,104310.0,0.34172]
[1738310484978,0.47927,104320.0,104310.0,0.47057317]
[1738310485194,0.47927,104320.0,104310.0,1.00997317]
[1738310485407,0.47927,104320.0,104310.0,1.13382634]
[1738310485625,0.47927,104320.0,104310.0,1.2310695]
[1738310485844,0.47927,104320.0,104310.0,1.2280695]
[1738310486050,0.47927,104320.0,104310.0,1.2310695]
[1738310486255,0.47927,104320.0,104310.0,1.2290695]
[1738310486461,0.47927,104320.0,104310.0,1.2310695]
[1738310487129,0.47927,104320.0,104310.0,1.2290695]
[1738310487363,0.47952599,104320.0,104310.0,1.2280695]
[1738310487802,0.47952599,104320.0,104310.0,1.2310695]
[1738310489427,0.47952599,104320.0,104310.0,1.13382634]
[1738310489689,0.47952599,104320.0,104310.0,1.00997317]
[1738310491008,0.47952599,104320.0,104310.0,1.00697317]
[1738310491221,0.47952599,104320.0,104310.0,1.00497317]
[1738310491429,0.47952599,104320.0,104310.0,1.00997317]
[1738310492307,0.47952599,104320.0,104310.0,1.13082634]
[1738310492724,0.47952599,104320.0,104310.0,1.12882634]
[1738310492941,0.47952599,104320.0,104310.0,1.60711226]
[1738310493164,0.47952599,104320.0,104310.0,1.70535542]
[1738310495044,0.47952599,104320.0,104310.0,1.7450367]
[1738310495615,0.47952599,104320.0,104310.0,1.26675078]
[1738310497119,0.47952599,104320.0,104310.0,1.59575078]
[1738310497292,0.45072583,104320.0,104310.0,1.59575078]
[1738310497833,0.45072583,104320.0,104310.0,1.58575078]
[1738310498033,0.45072583,104320.0,104310.0,1.59575078]
[1738310498252,0.45072583,104320.0,104310.0,1.61813799]
[1738310498456,0.45072583,104320.0,104310.0,1.61525989]
[1738310498678,0.45072583,104320.0,104310.0,1.60525989]
[1738310498895,0.45072583,104320.0,104310.0,1.60725989]
[1738310499750,0.45072583,104320.0,104310.0,1.60925989]
[1738310500173,0.45072583,104320.0,104310.0,1.58725989]
[1738310500346,0.45072583,104320.0,104310.0,1.49001673]
[1738310500524,0.45072583,104320.0,104310.0,1.49201673]
[1738310500726,0.45072583,104320.0,104310.0,1.16301673]
[1738310501433,0.52932583,104320.0,104310.0,1.01977635]
[1738310501652,0.57912583,104320.0,104310.0,0.86009507]
[1738310502284,0.57912583,104320.0,104310.0,0.98394824]
[1738310502494,0.57912583,104320.0,104310.0,0.98194824]
[1738310502670,0.57912583,104320.0,104310.0,0.98394824]
[1738310502892,0.57912583,104320.0,104310.0,1.13394824]
[1738310503499,0.57912583,104320.0,104310.0,1.13194824]
[1738310503760,0.57912583,104320.0,104310.0,1.13394824]
[1738310503972,0.57912583,104320.0,104310.0,1.13094824]
[1738310504177,0.57912583,104320.0,104310.0,1.13394824]
[1738310504370,0.57912583,104320.0,104310.0,0.59154824]
[1738310504897,0.57912583,104320.0,104310.0,0.59454824]
[1738310508921,0.50052583,104320.0,104310.0,0.59454824]
[1738310510275,0.50052583,104320.0,104310.0,1.13394824]
[1738310512147,0.50052583,104320.0,104310.0,1.01009507]
[1738310512354,0.70056899,104320.0,104310.0,0.0051219]
[1738310512606,0.70056899,104320.0,104310.0,0.1489239]
[1738310512607,0.84435699,104320.0,104310.0,0.1489239]
[1738310513220,0.84435699,104320.0,104310.0,0.1469239]
[1738310513649,0.84430699,104320.0,104310.0,0.1469239]
[1738310514035,0.84430699,104320.0,104310.0,0.1439239]
[1738310514589,0.84430699,104320.0,104310.0,0.1459239]
[1738310515276,0.84430699,104320.0,104310.0,0.1439239]
[1738310515577,0.84430699,104320.0,104310.0,0.1449239]
[1738310517455,0.84430699,104320.0,104310.0,0.0011219]
[1738310517670,0.84430699,104320.0,104310.0,0.1449239]
[1738310518398,0.84430699,104320.0,104310.0,0.26877707]
[1738310519406,0.84430699,104320.0,104310.0,0.0011219]
[1738310520734,0.84430699,104320.0,104310.0,0.0001219]
[1738310521120,1.11916016,104320.0,104310.0,0.0001219]
[1738310521290,0.99830699,104320.0,104310.0,0.0001219]
[1738310521509,1.12216016,104320.0,104310.0,0.0001219]
[1738310522044,1.11916016,104320.0,104310.0,0.0001219]
[1738310522575,0.023,104310.0,104280.0,0.26769417]
[1738310522789,0.1533,104290.0,104280.0,0.26769417]
[1738310522992,0.700963,104290.0,104280.0,0.143841]
[1738310523153,0.844752,104290.0,104280.0,0.26769417]
[1738310523333,0.844752,104290.0,104280.0,0.12385317]
[1738310523536,0.844752,104290.0,104270.0,0.45950017]
[1738310523744,0.12024316,104280.0,104270.0,0.26770517]
[1738310524093,0.5707112,104280.0,104270.0,0.26770517]
[1738310524397,0.5707112,104280.0,104270.0,0.41770517]
[1738310524560,0.5477112,104280.0,104270.0,0.41770517]
[1738310524768,0.5477112,104280.0,104270.0,0.42714197]
[1738310524967,0.0789,104270.0,104260.0,1.07649371]
[1738310525172,0.626563,104270.0,104260.0,1.20034688]
[1738310525604,0.79342,104270.0,104260.0,0.88466671]
[1738310526026,0.79342,104270.0,104260.0,1.15239088]
[1738310526190,0.695063,104270.0,104260.0,1.15239088]
[1738310526402,0.83892,104270.0,104260.0,1.15239088]
[1738310526611,0.83892,104270.0,104260.0,0.88466671]
[1738310526791,0.83892,104270.0,104260.0,1.02853771]
[1738310526994,0.83892,104270.0,104260.0,0.88466671]
[1738310527822,0.83892,104270.0,104260.0,0.88666671]
[1738310528028,0.83892,104270.0,104260.0,0.88966671]
[1738310528231,0.83892,104270.0,104260.0,0.88466671]
[1738310528674,0.83892,104270.0,104260.0,0.88566671]
[1738310530183,0.83892,104270.0,104260.0,1.00951988]
[1738310530781,0.83892,104270.0,104260.0,1.00851988]
[1738310531242,0.84192,104270.0,104260.0,1.00951988]
[1738310532246,0.84192,104270.0,104260.0,1.15239088]
[1738310532714,0.698063,104270.0,104260.0,1.15239088]
[1738310534103,0.84192,104270.0,104260.0,1.15239088]
[1738310534297,0.83892,104270.0,104260.0,1.15239088]
[1738310534615,0.83892,104270.0,104260.0,1.15339088]
[1738310535019,0.83892,104270.0,104260.0,1.15239088]
[1738310535836,0.83892,104270.0,104260.0,1.15339088]
[1738310537081,0.83892,104270.0,104260.0,1.02953771]
[1738310537289,0.83892,104270.0,104260.0,0.88466671]
[1738310537504,0.83892,104270.0,104260.0,1.15339088]
[1738310538107,0.83892,104270.0,104260.0,1.00951988]
[1738310538266,0.83892,104270.0,104260.0,1.15339088]
[1738310538614,0.83892,104270.0,104260.0,1.00951988]
[1738310538739,0.83892,104270.0,104260.0,1.15339088]
[1738310538968,0.83892,104270.0,104260.0,1.00951988]
[1738310539199,0.83892,104270.0,104260.0,1.15339088]
[1738310540323,0.83892,104270.0,104260.0,1.15239088]
[1738310540747,0.83892,104270.0,104260.0,1.15339088]
[1738310541752,0.695063,104270.0,104260.0,1.15339088]
[1738310545387,0.83892,104270.0,104260.0,1.15339088]
[1738310546382,0.83892,104270.0,104260.0,1.00951988]
[1738310546491,0.83892,104270.0,104260.0,1.15339088]
[1738310546701,0.83892,104270.0,104260.0,1.02953771]
[1738310548326,0.83892,104270.0,104260.0,1.02853771]
[1738310548759,0.83892,104270.0,104260.0,1.02953771]
[1738310549573,0.83892,104270.0,104260.0,0.88566671]
[1738310550424,0.83892,104270.0,104260.0,0.88466671]
[1738310551110,0.83892,104270.0,104260.0,0.88566671]
[1738310553283,0.83892,104270.0,104260.0,0.88466671]
[1738310554232,0.84192,104270.0,104260.0,0.88466671]
[1738310554429,0.84392,104270.0,104260.0,0.88466671]
[1738310554641,0.84092,104270.0,104260.0,0.88466671]
[1738310554868,0.84692,104270.0,104260.0,0.88466671]
[1738310565272,0.94427676,104270.0,104260.0,0.88466671]
[1738310565564,0.84692,104270.0,104260.0,0.88466671]
[1738310565869,1.12077317,104270.0,104260.0,0.88466671]
[1738310566101,1.13077317,104270.0,104260.0,0.88466671]
[1738310566854,1.12877317,104270.0,104260.0,0.88466671]
[1738310567270,1.12177317,104270.0,104260.0,0.83566671]
[1738310567470,1.22812993,104270.0,104260.0,0.83566671]
[1738310568085,1.23712993,104270.0,104260.0,0.83566671]
[1738310568288,0.99292,104270.0,104260.0,0.83566671]
[1738310568709,1.14077317,104270.0,104260.0,0.83466671]
[1738310568930,1.22616921,104270.0,104260.0,0.83466671]
[1738310569136,1.23516921,104270.0,104260.0,0.83566671]
[1738310569556,1.21616921,104270.0,104260.0,0.83466671]
[1738310569704,1.33352597,104270.0,104260.0,0.83466671]
[1738310569916,1.34252597,104270.0,104260.0,0.83566671]
[1738310572046,1.34884597,104270.0,104260.0,0.83566671]
[1738310572473,1.36820355,104270.0,104260.0,0.83566671]
[1738310572831,1.37770455,104270.0,104260.0,0.83566671]
[1738310575819,1.35770455,104270.0,104260.0,0.81071268]
[1738310576272,1.50396578,104270.0,104260.0,0.73890392]
[1738310576481,1.49496578,104270.0,104260.0,0.73790392]
[1738310576806,1.50396578,104270.0,104260.0,0.73890392]
[1738310577012,1.50396578,104270.0,104260.0,0.69619632]
[1738310577219,1.36211261,104270.0,104260.0,0.61649632]
[1738310577624,1.49496578,104270.0,104260.0,0.61649632]
[1738310578632,1.22834779,104270.0,104260.0,0.61649632]
[1738310579052,1.34334779,104270.0,104260.0,0.61549632]
[1738310579251,1.23602779,104270.0,104260.0,0.61549632]
[1738310579436,1.25134779,104270.0,104260.0,0.0001218]
[1738310579682,1.25160378,104270.0,104260.0,0.0001218]
[1738310580086,1.34896054,104270.0,104260.0,0.0001218]
[1738310580311,1.33996054,104270.0,104260.0,0.0001218]
[1738310580803,1.34896054,104270.0,104260.0,0.0001218]
[1738310581262,0.053,104260.0,104220.0,0.4415448]
[1738310581449,0.143912,104230.0,104220.0,0.2976228]
[1738310581654,0.691575,104230.0,104220.0,0.2976228]
[1738310581796,0.547663,104230.0,104220.0,0.2976228]
[1738310582004,0.547663,104230.0,104220.0,0.54532914]
[1738310582211,0.547663,104230.0,104220.0,0.69532914]
[1738310582212,0.45041984,104230.0,104220.0,0.69532914]
[1738310582686,0.45041984,104230.0,104220.0,0.69547381]
[1738310583335,0.45041984,104230.0,104220.0,0.69647381]
[1738310583734,0.45541984,104230.0,104220.0,0.69647381]
[1738310583952,0.45041984,104230.0,104220.0,0.69547381]
[1738310584768,0.45041984,104230.0,104220.0,0.70506161]
[1738310585290,0.45041984,104230.0,104220.0,0.70606161]
[1738310586238,0.45041984,104230.0,104220.0,1.24546161]
[1738310588389,0.45041984,104230.0,104220.0,1.24412008]
[1738310588684,0.45041984,104230.0,104220.0,1.24312008]
[1738310588892,0.45041984,104230.0,104220.0,1.24612008]
[1738310590063,0.45041984,104230.0,104220.0,1.34336324]
[1738310591712,0.45041984,104230.0,104220.0,1.12226691]
[1738310592134,0.45041984,104230.0,104220.0,1.12238891]
[1738310594567,0.45041984,104230.0,104220.0,1.24624208]
[1738310596025,0.45041984,104230.0,104220.0,1.34348524]
[1738310596231,0.45041984,104230.0,104220.0,1.82177116]
[1738310596434,0.45041984,104230.0,104220.0,1.85161735]
[1738310598715,0.45041984,104230.0,104220.0,1.37333143]
[1738310600456,0.45041984,104230.0,104220.0,1.27608827]
[1738310600660,0.45041984,104230.0,104220.0,1.1522351]
[1738310600879,0.45041984,104230.0,104220.0,1.12238891]
[1738310602053,0.45041984,104230.0,104220.0,1.24624208]
[1738310602487,0.45041984,104230.0,104220.0,1.12238891]
[1738310602671,0.45041984,104230.0,104220.0,1.24624208]
[1738310603539,0.45067604,104230.0,104220.0,1.24624208]
[1738310603737,0.45067604,104230.0,104220.0,1.12238891]
[1738310603942,0.45067604,104230.0,104220.0,1.24624208]
[1738310606244,0.45067604,104230.0,104220.0,1.06540864]
[1738310607620,0.45067604,104230.0,104220.0,1.18926181]
[1738310607819,0.45067604,104230.0,104220.0,1.01800864]
[1738310610613,0.52617604,104230.0,104220.0,0.89415547]
[1738310610834,0.52617604,104230.0,104220.0,1.01800864]
[1738310611054,0.52617604,104230.0,104220.0,0.89415547]
[1738310611256,0.6234192,104230.0,104220.0,0.00985447]
[1738310611495,0.7673312,104230.0,104220.0,0.00226667]
[1738310612035,0.7673312,104230.0,104220.0,0.00026667]
[1738310612399,0.8172312,104230.0,104220.0,0.00026667]
[1738310613455,0.8192312,104230.0,104220.0,0.00126667]
[1738310614091,0.8192312,104230.0,104220.0,0.00026667]
[1738310619242,0.8192312,104230.0,104220.0,0.14419267]
[1738310619450,0.8192312,104230.0,104220.0,0.00026667]
[1738310619796,0.8192312,104230.0,104220.0,0.14419267]
[1738310620227,0.6753192,104230.0,104220.0,0.14419267]
[1738310620423,0.8192312,104230.0,104220.0,0.14419267]
[1738310622300,0.6753192,104230.0,104220.0,0.14419267]
[1738310622721,0.8192312,104230.0,104220.0,0.14419267]
[1738310622903,0.8192312,104230.0,104220.0,0.26804584]
[1738310624259,0.6753192,104230.0,104220.0,0.26804584]
[1738310626209,0.45267604,104230.0,104220.0,0.39189901]
[1738310626415,0.45267604,104230.0,104220.0,0.54189901]
[1738310626633,0.45267604,104230.0,104220.0,1.14782925]
[1738310627675,0.45067604,104230.0,104220.0,1.14782925]
[1738310628020,0.45067604,104230.0,104220.0,1.14882925]
[1738310628664,0.45067604,104230.0,104220.0,1.14782925]
[1738310629923,0.45067604,104230.0,104220.0,1.14882925]
[1738310631174,0.45067604,104230.0,104220.0,1.30497241]
[1738310631595,0.45067604,104230.0,104220.0,1.3348152]
[1738310632993,0.45067604,104230.0,104220.0,1.3338152]
[1738310633958,0.45067604,104230.0,104220.0,1.3358152]
[1738310634407,0.45067604,104230.0,104220.0,1.3338152]
[1738310634728,0.45067604,104230.0,104220.0,1.3457752]
[1738310638254,0.22205241,104230.0,104220.0,1.7177752]
[1738310638458,0.17213241,104230.0,104220.0,1.68793241]
[1738310638673,0.16027637,104230.0,104220.0,1.71775539]
[1738310638887,0.16027637,104230.0,104220.0,1.77535539]
[1738310639331,0.16027637,104230.0,104220.0,1.77335539]
[1738310639745,0.16027637,104230.0,104220.0,1.77535539]
[1738310640158,0.16027637,104230.0,104220.0,1.77335539]
[1738310640577,0.13811637,104230.0,104220.0,1.77535539]
[1738310641181,0.11624637,104230.0,104220.0,1.77535539]
[1738310641746,0.11624637,104230.0,104220.0,1.81373339]
[1738310642724,0.11624637,104230.0,104220.0,1.78391041]
[1738310643453,0.07445637,104230.0,104220.0,1.78391041]
[1738310645291,0.05115637,104230.0,104220.0,1.78391041]
[1738310645491,0.02193,104230.0,104220.0,2.64721041]
[1738310645692,0.19433,104230.0,104220.0,2.39108251]
[1738310646105,0.07695599,104270.0,104220.0,2.24715651]
[1738310646321,0.07695599,104270.0,104260.0,0.26772417]
[1738310646535,0.55659599,104270.0,104260.0,0.80712417]
[1738310648906,0.55659599,104270.0,104260.0,0.95712417]
[1738310649131,0.55659599,104270.0,104260.0,0.95812417]
[1738310652586,0.55659599,104270.0,104260.0,0.97710403]
[1738310652785,0.47989599,104270.0,104260.0,1.07434719]
[1738310656433,0.47989599,104270.0,104260.0,1.08412232]
[1738310656920,0.55909599,104270.0,104260.0,1.08412232]
[1738310665409,0.55909599,104270.0,104260.0,1.11399416]
[1738310665620,0.62489599,104270.0,104260.0,0.74289783]
[1738310665829,0.62489599,104270.0,104260.0,0.71302599]
[1738310666040,0.62489599,104270.0,104260.0,0.83687916]
[1738310667365,0.62489599,104270.0,104260.0,0.71302599]
[1738310667564,0.62489599,104270.0,104260.0,0.71202599]
[1738310667768,0.62489599,104270.0,104260.0,0.69304613]
[1738310668019,0.62489599,104270.0,104260.0,0.5404]
[1738310668020,0.73213915,104270.0,104260.0,0.5404]
[1738310668209,0.73213915,104270.0,104250.0,0.383664]
[1738310668210,0.1526,104260.0,104250.0,0.00953685]
[1738310668419,0.1226,104250.0,104240.0,1.20414]
[1738310668571,0.60224,104250.0,104240.0,1.20414]
[1738310668756,0.60224,104250.0,104240.0,1.20428467]
[1738310668963,0.60224,104250.0,104240.0,1.32813784]
[1738310670005,0.60224,104250.0,104240.0,1.33757665]
[1738310670429,0.60224,104250.0,104240.0,1.21372348]
[1738310670646,0.61224,104250.0,104240.0,1.21372348]
[1738310672296,0.61224,104250.0,104240.0,1.21472348]
[1738310672702,0.61524,104250.0,104240.0,1.21472348]
[1738310672922,0.61524,104250.0,104240.0,1.21372348]
[1738310673659,0.61524,104250.0,104240.0,0.34532348]
[1738310674068,0.73248316,104250.0,104240.0,0.33588467]
[1738310675063,0.73248316,104250.0,104240.0,0.45973784]
[1738310675310,0.73248316,104250.0,104240.0,0.4776557]
[1738310678766,0.73248316,104250.0,104240.0,0.35380253]
[1738310679823,0.73248316,104250.0,104240.0,0.33588467]
[1738310680461,0.73248316,104250.0,104240.0,0.00014467]
[1738310680462,0.84636716,104250.0,104240.0,0.00014467]
[1738310684383,0.84636716,104250.0,104240.0,0.00026657]
[1738310690911,0.84636716,104250.0,104240.0,0.14416457]
[1738310691136,0.70248316,104250.0,104240.0,0.14416457]
[1738310691344,0.84636716,104250.0,104240.0,0.14416457]
[1738310692188,0.70248316,104250.0,104240.0,0.26801774]
[1738310692421,0.72248316,104250.0,104240.0,0.26801774]
[1738310693256,0.72248316,104250.0,104240.0,0.26775117]
[1738310694654,0.70248316,104250.0,104240.0,0.26775117]
[1738310695305,0.72248316,104250.0,104240.0,0.26775117]
[1738310696970,0.72248316,104250.0,104240.0,0.27731947]
[1738310697306,0.72248316,104250.0,104240.0,0.27744137]
[1738310697505,0.72248316,104250.0,104240.0,0.1535882]
[1738310697975,0.70248316,104250.0,104240.0,0.1535882]
[1738310699142,0.70248316,104250.0,104240.0,0.17154208]
[1738310702430,0.72248316,104250.0,104240.0,0.17154208]
[1738310703104,0.73248316,104250.0,104240.0,0.17154208]
[1738310703328,0.61524,104250.0,104240.0,0.44635448]
[1738310703523,0.63524,104250.0,104240.0,0.44539525]
[1738310707361,0.48264,104250.0,104240.0,1.22419158]
[1738310707580,0.48264,104250.0,104240.0,1.27711121]
[1738310707788,0.17694104,104250.0,104240.0,1.60611121]
[1738310708037,0.07900001,104250.0,104240.0,1.60611121]
[1738310708257,0.07900001,104250.0,104240.0,1.44095804]
[1738310708508,0.07600001,104250.0,104240.0,1.41103841]
[1738310708719,0.07600001,104250.0,104240.0,1.41303841]
[1738310708904,0.07600001,104250.0,104240.0,1.41603841]
[1738310709140,0.07600001,104250.0,104240.0,1.53489158]
[1738310709566,0.07600001,104250.0,104240.0,1.41403841]
[1738310710273,0.076256,104250.0,104240.0,1.41403841]
[1738310710652,0.076256,104250.0,104240.0,1.41603841]
[1738310711057,0.076256,104250.0,104240.0,1.31879525]
[1738310712015,0.076256,104250.0,104240.0,1.44264842]
[1738310727805,0.122956,104250.0,104240.0,1.44264842]
[1738310728231,0.122956,104250.0,104240.0,1.31879525]
[1738310729111,0.212256,104250.0,104240.0,1.16879525]
[1738310729299,0.232256,104250.0,104240.0,1.15922695]
[1738310729700,0.232256,104250.0,104240.0,1.30922695]
[1738310730115,0.232256,104250.0,104240.0,1.30422695]
[1738310730365,0.232256,104250.0,104240.0,1.30622695]
[1738310730559,0.232256,104250.0,104240.0,1.30922695]
[1738310730802,0.202256,104250.0,104240.0,1.43308012]
[1738310731020,0.202256,104250.0,104240.0,1.30722695]
[1738310731266,0.202256,104250.0,104240.0,1.30922695]
[1738310733048,0.202256,104250.0,104240.0,1.31863534]
[1738310734769,0.202256,104250.0,104240.0,1.44248851]
[1738310735538,0.202256,104250.0,104240.0,1.31863534]
[1738310736106,0.202256,104250.0,104240.0,1.44248851]
[1738310736509,0.202256,104250.0,104240.0,1.31863534]
[1738310737294,0.202256,104250.0,104240.0,1.34854782]
[1738310737501,0.155556,104250.0,104240.0,1.47240099]
[1738310739152,0.155556,104250.0,104240.0,1.34854782]
[1738310741400,0.165556,104250.0,104240.0,1.34854782]
[1738310741605,0.213656,104250.0,104240.0,1.34854782]
[1738310743418,0.213656,104250.0,104240.0,1.33059394]
[1738310744752,0.233656,104250.0,104240.0,1.33059394]
[1738310744952,0.233656,104250.0,104240.0,1.30068146]
[1738310745152,0.223656,104250.0,104240.0,0.43228146]
[1738310745355,0.32089916,104250.0,104240.0,0.42287307]
[1738310746955,0.46478316,104250.0,104240.0,0.2990199]
[1738310747688,0.46478316,104250.0,104240.0,0.42287307]
[1738310748823,0.32089916,104250.0,104240.0,0.42287307]
[1738310749247,0.44478316,104250.0,104240.0,0.27287307]
[1738310750043,0.44478316,104250.0,104240.0,0.29083014]
[1738310751661,0.30089916,104250.0,104240.0,0.29083014]
[1738310756416,0.213656,104250.0,104240.0,0.29083014]
[1738310756615,0.213656,104250.0,104240.0,0.56468331]
[1738310756820,0.165556,104250.0,104240.0,0.56468331]
[1738310757033,0.165556,104250.0,104240.0,0.98023014]
[1738310757240,0.165556,104250.0,104240.0,1.10408331]
[1738310757451,0.165556,104250.0,104240.0,0.98023014]
[1738310758262,0.086256,104250.0,104240.0,1.10408331]
[1738310758493,0.086256,104250.0,104240.0,1.08612624]
[1738310759333,0.076256,104250.0,104240.0,1.21328096]
[1738310762145,0.076256,104250.0,104240.0,1.23223032]
[1738310762497,0.076256,104250.0,104240.0,1.08833232]
[1738310774681,0.076256,104250.0,104240.0,1.08402369]
[1738310777553,0.123856,104250.0,104240.0,1.08402369]
[1738310777794,0.123856,104250.0,104240.0,0.98678053]
[1738310778058,0.198956,104250.0,104240.0,0.98678053]
[1738310786947,0.076256,104250.0,104240.0,1.10702369]
[1738310787717,0.076256,104250.0,104240.0,1.10502369]
[1738310787944,0.076256,104250.0,104240.0,1.10202369]
[1738310788106,0.076256,104250.0,104240.0,1.10502369]
[1738310788514,0.076256,104250.0,104240.0,1.10202369]
[1738310789378,0.076256,104250.0,104240.0,1.10402369]
[1738310789710,0.076256,104250.0,104240.0,1.10502369]
[1738310790407,0.076256,104250.0,104240.0,1.10702369]
[1738310792533,0.076256,104250.0,104240.0,1.43602369]
[1738310795790,0.07607042,104250.0,104240.0,1.43602369]
[1738310798640,0.04562042,104250.0,104240.0,1.49361369]
[1738310798880,0.004502,104250.0,104240.0,1.51091369]
[1738310799629,0.004502,104250.0,104240.0,1.65481169]
[1738310801581,0.00025599,104260.0,104250.0,0.316884]
[1738310801813,0.00025599,104260.0,104250.0,1.16572235]
[1738310802068,0.47984599,104260.0,104250.0,1.16572235]
[1738310802787,0.47984599,104260.0,104250.0,1.02183835]
[1738310802985,0.47984599,104260.0,104250.0,1.02383835]
[1738310804264,0.47984599,104260.0,104250.0,1.02683835]
[1738310805639,0.26009446,104260.0,104250.0,2.81712835]
[1738310805840,0.08267283,104260.0,104250.0,2.82040835]
[1738310806053,0.08267283,104260.0,104250.0,2.81840835]
[1738310806217,0.08267283,104260.0,104250.0,2.82140835]
[1738310806606,0.08267283,104260.0,104250.0,2.82040835]
[1738310806818,0.08267283,104260.0,104250.0,2.82140835]
[1738310807259,0.08267283,104260.0,104250.0,2.82040835]
[1738310807446,0.08267283,104260.0,104250.0,2.82340835]
[1738310807648,0.08267283,104260.0,104250.0,2.82140835]
[1738310808202,0.04905283,104260.0,104250.0,2.82140835]
[1738310808561,0.04905283,104260.0,104250.0,2.83098889]
[1738310808891,0.04905283,104260.0,104250.0,2.77339889]
[1738310809103,0.04905283,104260.0,104250.0,2.77439889]
[1738310810265,0.01447283,104260.0,104250.0,2.77439889]
[1738310810472,0.01447283,104260.0,104250.0,1.91109889]
[1738310811385,0.01447283,104260.0,104250.0,1.66770118]
[1738310811613,0.00025599,104270.0,104260.0,0.3970873]
[1738310811821,0.00025599,104270.0,104260.0,0.13828411]
[1738310812030,0.47980599,104270.0,104260.0,0.29269814]
[1738310812222,0.47980599,104270.0,104260.0,0.29173932]
[1738310813044,0.47980599,104270.0,104260.0,0.29473932]
[1738310813642,0.47980599,104270.0,104260.0,0.29373932]
[1738310813846,0.47980599,104270.0,104260.0,0.44473932]
[1738310816346,0.47980599,104270.0,104260.0,1.31313932]
[1738310819331,0.47980599,104270.0,104260.0,1.33187927]
[1738310819857,0.60460599,104270.0,104260.0,1.30196771]
[1738310820067,0.60460599,104270.0,104260.0,1.17842406]
[1738310820489,0.60460599,104270.0,104260.0,1.20142406]
[1738310820937,0.60460599,104270.0,104260.0,0.6846836]
[1738310821161,0.60460599,104270.0,104260.0,0.1452836]
[1738310821553,0.60460599,104270.0,104260.0,0.2952836]
[1738310821706,0.60460599,104270.0,104260.0,0.2932836]
[1738310821921,0.60460599,104270.0,104260.0,0.1422836]
[1738310822124,0.60460599,104270.0,104260.0,0.1452836]
[1738310822331,0.60460599,104270.0,104260.0,0.2932836]
[1738310822756,0.60460599,104270.0,104260.0,1.07747041]
[1738310822962,0.60460599,104270.0,104260.0,1.08530732]
[1738310823298,0.60460599,104270.0,104260.0,0.96176367]
[1738310823435,0.60460599,104270.0,104260.0,0.96076367]
[1738310823653,0.60460599,104270.0,104260.0,0.95876367]
[1738310823857,0.60460599,104270.0,104260.0,0.95976367]
[1738310824898,0.60460599,104270.0,104260.0,0.86452051]
[1738310825103,0.61460599,104270.0,104260.0,0.6846836]
[1738310825351,0.63460599,104270.0,104260.0,0.12654365]
[1738310825561,0.62460599,104270.0,104260.0,0.12654365]
[1738310825765,0.62460599,104270.0,104260.0,0.12354365]
[1738310825972,0.72184915,104270.0,104260.0,0.12454365]
[1738310826175,0.72184915,104270.0,104260.0,0.12654365]
[1738310826380,0.72184915,104270.0,104260.0,0.12454365]
[1738310826581,0.72184915,104270.0,104260.0,0.12354365]
[1738310826784,0.72184915,104270.0,104260.0,0.12554365]
[1738310827378,0.72184915,104270.0,104260.0,0.12654365]
[1738310831538,0.63460599,104270.0,104260.0,0.12654365]
[1738310832184,0.60460599,104270.0,104260.0,0.12750269]
[1738310832420,0.60460599,104270.0,104260.0,0.12654365]
[1738310832820,0.60460599,104270.0,104260.0,0.27041465]
[1738310833662,0.62460599,104270.0,104260.0,0.27041465]
[1738310834736,0.60460599,104270.0,104260.0,0.27041465]
[1738310835263,0.60460599,104270.0,104260.0,0.27053655]
[1738310835758,0.62460599,104270.0,104260.0,0.29005014]
[1738310835960,0.61460599,104270.0,104260.0,0.29005014]
[1738310836252,0.63460599,104270.0,104260.0,0.28014463]
[1738310842580,0.61460599,104270.0,104260.0,0.28014463]
[1738310842700,0.63460599,104270.0,104260.0,0.28014463]
[1738310843189,0.63460599,104270.0,104260.0,0.81954463]
[1738310843711,0.63460599,104270.0,104260.0,0.80993655]
[1738310846113,0.72184915,104270.0,104260.0,0.6863929]
[1738310846356,0.84570615,104270.0,104260.0,0.6863929]
[1738310846557,0.01,104260.0,104250.0,0.0001219]
[1738310846758,0.84686416,104260.0,104250.0,0.0001219]
[1738310847345,0.84686416,104260.0,104250.0,0.1440059]
[1738310847925,0.84786416,104260.0,104250.0,0.1440059]
[1738310848699,0.85186416,104260.0,104250.0,0.1440059]
[1738310849192,0.85286416,104260.0,104250.0,0.1440059]
[1738310849647,0.70899316,104260.0,104250.0,0.1440059]
[1738310850069,0.70899316,104260.0,104250.0,0.26754955]
[1738310850922,0.70899316,104260.0,104250.0,0.1440059]
[1738310851115,0.84686416,104260.0,104250.0,0.1440059]
[1738310852071,0.70499316,104260.0,104250.0,0.1440059]
[1738310852663,0.70599316,104260.0,104250.0,0.1440059]
[1738310853619,0.70599316,104260.0,104250.0,0.26754955]
[1738310853822,0.70599316,104260.0,104250.0,0.1440059]
[1738310854172,0.70399316,104260.0,104250.0,0.1440059]
[1738310854567,0.70799316,104260.0,104250.0,0.1440059]
[1738310856034,0.70699316,104260.0,104250.0,0.1440059]
[1738310858142,0.70324915,104260.0,104250.0,0.1440059]
[1738310858278,0.70424915,104260.0,104250.0,0.1440059]
[1738310859087,0.70324915,104260.0,104250.0,0.1440059]
[1738310859296,0.84812015,104260.0,104250.0,0.1440059]
[1738310859726,0.94447691,104260.0,104250.0,0.0001219]